bitfinex/quotes_BTCUSD_20251117
["timestamp","ask_amount","ask_price","bid_price","bid_amount"]
[1763404883525,2.30848769,92821.0,92820.0,0.00053209]
[1763404883740,2.31918769,92821.0,92820.0,0.00053209]
[1763404885396,2.14791185,92821.0,92820.0,0.00053209]
[1763404886055,2.14791185,92821.0,92820.0,0.00153209]
[1763404887141,2.04939185,92821.0,92820.0,0.00153209]
[1763404887379,2.03869185,92821.0,92820.0,0.00153209]
[1763404889045,0.0476,92836.0,92820.0,0.06627209]
[1763404889046,2.0,92831.0,92820.0,0.06627209]
[1763404889246,2.0,92831.0,92829.0,0.09660332]
[1763404889422,2.323,92830.0,92829.0,0.09660332]
[1763404889763,2.0,92831.0,92829.0,0.09660332]
[1763404889963,2.3337,92830.0,92829.0,0.09660332]
[1763404890375,2.3337,92830.0,92821.0,0.0398]
[1763404890499,2.0,92827.0,92824.0,0.09660332]
[1763404890701,2.323,92825.0,92824.0,0.09660332]
[1763404890943,2.38541,92825.0,92824.0,0.09660332]
[1763404891155,2.43186,92825.0,92824.0,0.09660332]
[1763404891349,0.323,92822.0,92820.0,0.00053209]
[1763404891552,0.00046,92821.0,92820.0,0.00053209]
[1763404891751,0.09653,92821.0,92820.0,0.00053209]
[1763404892352,0.43186,92821.0,92820.0,0.00053209]
[1763404892581,2.43186,92821.0,92820.0,0.00053209]
[1763404893130,2.43186,92821.0,92820.0,0.00153209]
[1763404893550,2.43186,92821.0,92820.0,0.00053209]
[1763404893985,2.43186,92821.0,92820.0,0.00153209]
[1763404894617,2.43118586,92821.0,92820.0,0.00153209]
[1763404895564,0.38473586,92821.0,92820.0,0.00153209]
[1763404896705,0.323,92821.0,92820.0,0.00153209]
[1763404898843,0.323,92821.0,92820.0,0.16018209]
[1763404899162,0.04876,92849.0,92820.0,0.16018209]
[1763404899163,0.04552,92843.0,92820.0,0.16018209]
[1763404899412,2.0,92839.0,92837.0,2e-08]
[1763404899630,2.0,92838.0,92832.0,0.03974]
[1763404899882,0.05319983,92851.0,92838.0,0.06562]
[1763404900102,0.07459832,92876.0,92833.0,0.02154406]
[1763404900103,0.05320053,92861.0,92842.0,0.007]
[1763404900310,2.0,92858.0,92842.0,0.007]
[1763404900505,2.0,92858.0,92843.0,0.03417]
[1763404900683,0.05355967,92857.0,92843.0,0.03417]
[1763404900884,0.05355967,92857.0,92844.0,0.02154151]
[1763404901051,0.09607,92863.0,92856.0,0.1535236]
[1763404901052,2.0,92863.0,92856.0,0.1535236]
[1763404901273,0.5,92869.0,92856.0,0.1535236]
[1763404901274,2.0,92869.0,92862.0,0.0574]
[1763404901523,0.05301107,92871.0,92863.0,0.0586671]
[1763404901729,2.0,92885.0,92870.0,0.06628002]
[1763404901954,2.0,92883.0,92870.0,0.06628002]
[1763404902148,0.04552,92897.0,92886.0,0.06628]
[1763404902364,0.04552,92897.0,92890.0,0.09660332]
[1763404902365,0.00066802,92892.0,92890.0,0.09660332]
[1763404905412,0.41907,92891.0,92872.0,0.03894]
[1763404905699,0.41907,92891.0,92884.0,0.09660332]
[1763404905700,0.00024,92885.0,92884.0,0.09660332]
[1763404905921,0.323,92890.0,92884.0,0.09660332]
[1763404906079,0.02424,92885.0,92872.0,0.03894]
[1763404906299,0.02424,92885.0,92884.0,0.09660332]
[1763404906684,0.44259,92885.0,92884.0,0.09660332]
[1763404907092,0.34724,92885.0,92884.0,0.09660332]
[1763404908614,0.323,92885.0,92884.0,0.09660332]
[1763404909778,0.323,92885.0,92873.0,0.02153478]
[1763404909779,0.323,92884.0,92873.0,0.02153478]
[1763404910761,0.02495,92886.0,92872.0,0.03894]
[1763404910964,0.02495,92886.0,92884.0,0.09660332]
[1763404912375,0.04531,92885.0,92884.0,0.09660332]
[1763404912583,0.36831,92885.0,92872.0,0.03894]
[1763404912795,0.36831,92885.0,92870.0,2e-08]
[1763404912796,0.323,92883.0,92870.0,2e-08]
[1763404912995,2.323,92885.0,92884.0,0.09660332]
[1763404913198,0.323,92885.0,92884.0,0.19921332]
[1763404913735,0.323,92885.0,92884.0,0.13554332]
[1763404913967,0.323,92885.0,92884.0,0.20182332]
[1763404914211,0.323,92885.0,92884.0,0.13554332]
[1763404914337,0.323,92885.0,92884.0,0.20182332]
[1763404914750,0.323,92885.0,92884.0,0.13554332]
[1763404915188,0.323,92884.0,92880.0,0.03894]
[1763404916429,0.09607,92884.0,92873.0,0.03894]
[1763404916632,0.09607,92883.0,92870.0,2e-08]
[1763404918040,0.02154405,92882.0,92870.0,2e-08]
[1763404918168,0.323,92886.0,92870.0,2e-08]
[1763404918169,0.323,92884.0,92870.0,2e-08]
[1763404918370,0.02154405,92883.0,92870.0,2e-08]
[1763404919007,0.323,92884.0,92870.0,0.09237002]
[1763404919207,0.323,92884.0,92871.0,0.02153524]
[1763404919410,0.02424,92889.0,92870.0,2e-08]
[1763404919608,0.01888349,92888.0,92870.0,2e-08]
[1763404920214,0.41925,92887.0,92870.0,2e-08]
[1763404920415,0.34454405,92886.0,92870.0,2e-08]
[1763404920613,0.323,92886.0,92884.0,0.09660332]
[1763404921206,0.00066802,92892.0,92885.0,0.183792]
[1763404921406,0.01870641,92918.0,92891.0,0.14620874]
[1763404921640,0.01883827,92918.0,92917.0,0.19857014]
[1763404922054,0.01883827,92918.0,92917.0,0.20857014]
[1763404922255,0.01883827,92918.0,92917.0,0.25198888]
[1763404922462,0.01883827,92918.0,92917.0,0.24198888]
[1763404923607,0.01883827,92918.0,92917.0,0.10554014]
[1763404924020,0.01883827,92918.0,92917.0,0.20157014]
[1763404924227,0.01883827,92918.0,92917.0,0.10554014]
[1763404924428,0.01883827,92918.0,92917.0,0.20157014]
[1763404924637,0.01883827,92918.0,92917.0,0.10554014]
[1763404925086,0.01883827,92918.0,92917.0,0.10454014]
[1763404925433,0.01883827,92918.0,92917.0,0.24298888]
[1763404925548,0.01883827,92918.0,92917.0,0.24498888]
[1763404925752,0.0002,92930.0,92918.0,0.04341874]
[1763404925976,0.0002,92930.0,92929.0,0.09660332]
[1763404926376,0.0002,92930.0,92929.0,0.25886332]
[1763404926611,0.0002,92930.0,92929.0,0.30228206]
[1763404927283,0.01841688,92930.0,92929.0,0.30328206]
[1763404928351,0.01841688,92930.0,92929.0,0.30228206]
[1763404928550,0.01841688,92930.0,92929.0,0.30328206]
[1763404928704,0.05310632,92957.0,92929.0,0.30328206]
[1763404928705,0.05310632,92957.0,92954.0,2e-08]
[1763404929073,0.00013198,92957.0,92954.0,2e-08]
[1763404929247,0.04858,92955.0,92954.0,2e-08]
[1763404929444,0.04858,92955.0,92929.0,0.14202206]
[1763404929445,0.04858,92955.0,92932.0,0.04341874]
[1763404929622,0.04858,92955.0,92954.0,2e-08]
[1763404930255,0.0184903,92957.0,92954.0,2e-08]
[1763404931194,0.0184903,92957.0,92956.0,0.06623]
[1763404931351,0.0184903,92957.0,92956.0,0.08774555]
[1763404931566,0.0184903,92957.0,92956.0,0.16226]
[1763404931766,0.0184903,92957.0,92956.0,0.20567874]
[1763404931968,0.0184903,92957.0,92956.0,0.21567874]
[1763404932343,0.0184903,92957.0,92956.0,0.23719429]
[1763404932543,0.0184903,92957.0,92956.0,0.20567874]
[1763404932728,0.0184903,92957.0,92956.0,0.001]
[1763404932953,0.0184903,92957.0,92956.0,0.06823]
[1763404932954,0.0203445,92957.0,92956.0,0.06823]
[1763404933156,0.0203445,92957.0,92956.0,0.06623]
[1763404933353,0.0203445,92957.0,92956.0,0.16226]
[1763404933801,0.0203445,92957.0,92956.0,0.18377555]
[1763404934388,0.0203445,92957.0,92956.0,0.18577555]
[1763404934582,0.0203445,92957.0,92956.0,0.16526]
[1763404934988,0.0203445,92957.0,92956.0,0.16326]
[1763404935184,0.0203445,92957.0,92956.0,0.16526]
[1763404935389,0.0203445,92957.0,92956.0,0.20867874]
[1763404935590,0.0203445,92957.0,92956.0,0.24019429]
[1763404935812,0.0203445,92957.0,92956.0,0.20867874]
[1763404935983,0.0203445,92957.0,92956.0,0.23019429]
[1763404936393,0.0203445,92957.0,92956.0,0.003]
[1763404936623,0.4880745,92957.0,92956.0,0.003]
[1763404936818,2.53688195,92957.0,92956.0,0.003]
[1763404937080,2.4880745,92957.0,92956.0,0.003]
[1763404937610,2.4880745,92957.0,92956.0,0.002]
[1763404937998,0.323,92954.0,92931.0,0.03664]
[1763404938316,0.323,92950.0,92944.0,0.09660332]
[1763404938519,0.323,92950.0,92931.0,0.03664]
[1763404938729,0.09482,92949.0,92916.0,0.0946]
[1763404938941,0.323,92948.0,92930.0,0.03664]
[1763404939083,0.02154405,92947.0,92930.0,0.05725748]
[1763404939295,0.00111281,92931.0,92916.0,0.0946]
[1763404939515,0.02154405,92945.0,92916.0,0.0946]
[1763404939863,0.02154405,92945.0,92930.0,0.03664]
[1763404940073,0.41782,92944.0,92930.0,0.03664]
[1763404940231,0.04872,92947.0,92904.0,0.0946]
[1763404940232,0.08696,92931.0,92904.0,0.0946]
[1763404940437,0.03547,92930.0,92918.0,0.09660332]
[1763404940641,0.03547,92930.0,92887.0,0.03867501]
[1763404940642,0.06184,92919.0,92891.0,0.0946]
[1763404940804,0.03605,92918.0,92881.0,0.12373715]
[1763404941007,0.03605,92918.0,92881.0,0.0946]
[1763404941264,0.323,92917.0,92899.0,0.03664]
[1763404941464,0.323,92917.0,92870.0,0.01000001]
[1763404941465,0.06099,92904.0,92873.0,0.0946]
[1763404941677,0.0363,92900.0,92873.0,0.0946]
[1763404941923,0.0363,92900.0,92898.0,0.09660332]
[1763404942132,0.323,92910.0,92899.0,0.03664]
[1763404942338,0.02907832,92956.0,92899.0,0.03664]
[1763404942339,0.02154405,92909.0,92899.0,0.05816875]
[1763404942544,0.323,92920.0,92903.0,0.001]
[1763404942747,0.323,92927.0,92903.0,0.001]
[1763404942748,0.09482,92945.0,92919.0,0.09660332]
[1763404942995,2.0,92943.0,92933.0,0.09660332]
[1763404943215,2.0,92941.0,92933.0,0.09660332]
[1763404943431,0.09660332,92961.0,92933.0,0.09660332]
[1763404943432,0.323,92938.0,92933.0,0.09660332]
[1763404943652,2.0,92939.0,92933.0,0.09660332]
[1763404943653,0.323,92934.0,92933.0,0.09660332]
[1763404943858,0.323,92934.0,92928.0,0.03671]
[1763404943859,0.323,92934.0,92922.0,0.03671]
[1763404944075,0.0121,92929.0,92923.0,0.09660332]
[1763404944288,0.01487706,92933.0,92923.0,0.09673518]
[1763404944504,0.04872,92928.0,92923.0,0.00013186]
[1763404944718,0.04872,92928.0,92924.0,0.09660332]
[1763404945524,0.09482,92942.0,92925.0,0.02152273]
[1763404945704,0.04872,92925.0,92923.0,0.00213186]
[1763404946148,0.20307123,92941.0,92924.0,0.09660332]
[1763404946371,2.0,92939.0,92924.0,0.09660332]
[1763404946585,2.0,92937.0,92925.0,0.02152273]
[1763404946820,2.0,92940.0,92926.0,0.0215225]
[1763404947248,0.20307123,92941.0,92938.0,0.09660332]
[1763404947664,0.09482,92940.0,92924.0,0.09660332]
[1763404947877,0.20307123,92941.0,92925.0,0.001]
[1763404948113,0.20307123,92941.0,92938.0,0.09660332]
[1763404948336,0.323,92945.0,92938.0,0.09660332]
[1763404948541,0.02008274,92944.0,92938.0,0.09760332]
[1763404948759,0.06184,92939.0,92938.0,0.001]
[1763404948965,0.10346604,92939.0,92938.0,0.001]
[1763404949196,0.42646604,92939.0,92938.0,0.001]
[1763404949407,0.40492199,92939.0,92938.0,0.001]
[1763404949609,0.40492199,92939.0,92923.0,0.00013186]
[1763404949815,0.36462604,92938.0,92930.0,0.09660332]
[1763404950059,0.02008199,92937.0,92930.0,0.09660332]
[1763404950695,0.02008199,92937.0,92931.0,0.02152134]
[1763404950899,0.323,92942.0,92930.0,0.09660332]
[1763404951109,0.09736,92950.0,92930.0,0.09660332]
[1763404951110,0.0201015,92941.0,92930.0,0.09608332]
[1763404951323,0.0201015,92940.0,92930.0,0.09608332]
[1763404951524,0.0201015,92939.0,92930.0,0.09708332]
[1763404951796,0.0201015,92938.0,92931.0,0.02152134]
[1763404951975,0.0201015,92937.0,92930.0,0.09708332]
[1763404952176,0.02154405,92945.0,92930.0,0.09708332]
[1763404952398,0.323,92941.0,92930.0,0.001]
[1763404952533,0.03999727,92940.0,92930.0,0.001]
[1763404952731,0.02010428,92939.0,92931.0,0.09660332]
[1763404952983,0.02010428,92938.0,92932.0,0.02152111]
[1763404953218,0.02010428,92937.0,92932.0,0.02152111]
[1763404953451,0.02010428,92936.0,92932.0,0.02152111]
[1763404953626,0.323,92942.0,92933.0,0.02152088]
[1763404953825,0.02009771,92941.0,92933.0,0.09660332]
[1763404954030,0.02009771,92940.0,92933.0,0.09660332]
[1763404954266,0.06007,92934.0,92923.0,0.00013186]
[1763404954481,0.323,92938.0,92932.0,0.09660332]
[1763404954687,0.323,92938.0,92923.0,0.00013186]
[1763404954688,0.06007,92924.0,92923.0,0.00013186]
[1763404955738,2.40316185,92924.0,92923.0,0.00013186]
[1763404956574,2.40316185,92924.0,92923.0,0.00113186]
[1763404957239,2.40316185,92924.0,92923.0,0.00013186]
[1763404958989,2.38307,92924.0,92923.0,0.00013186]
[1763404959200,2.40314516,92924.0,92923.0,0.00013186]
[1763404959409,2.38307,92924.0,92923.0,0.00013186]
[1763404959682,2.40314226,92924.0,92923.0,0.00013186]
[1763404960312,2.38307,92924.0,92923.0,0.00013186]
[1763404961197,2.38398314,92924.0,92923.0,0.00013186]
[1763404964064,2.48765252,92924.0,92923.0,0.00013186]
[1763404964286,2.40408304,92924.0,92923.0,0.00013186]
[1763404964493,2.38398314,92924.0,92923.0,0.00013186]
[1763404964715,2.40408353,92924.0,92923.0,0.00013186]
[1763404965999,2.40409624,92924.0,92923.0,0.00013186]
[1763404966852,0.34402624,92924.0,92923.0,0.00013186]
[1763404967135,0.32391314,92924.0,92923.0,0.00013186]
[1763404967803,0.00091314,92924.0,92923.0,0.15483186]
[1763404968025,0.00091314,92924.0,92923.0,0.1982506]
[1763404968260,3.14e-06,92924.0,92923.0,0.21977379]
[1763404968477,0.323,92955.0,92929.0,0.04341874]
[1763404968693,0.09736,92967.0,92954.0,0.09660332]
[1763404968914,2.0,92956.0,92945.0,0.09660332]
[1763404969365,0.323,92955.0,92945.0,0.09660332]
[1763404969589,0.323,92955.0,92934.0,0.02904391]
[1763404969590,0.323,92955.0,92936.0,0.03573]
[1763404969807,0.04612,92946.0,92937.0,0.04341874]
[1763404970026,0.04612,92946.0,92936.0,0.03573]
[1763404970240,0.04612,92946.0,92925.0,0.08214395]
[1763404970241,0.42036,92945.0,92932.0,0.09660332]
[1763404970462,0.34454405,92944.0,92932.0,0.09660332]
[1763404970680,0.02154405,92943.0,92932.0,0.09660332]
[1763404970924,0.04917,92933.0,92932.0,0.09660332]
[1763404971106,0.04917,92933.0,92918.0,0.04341874]
[1763404971361,0.04917,92933.0,92917.0,0.04341874]
[1763404971576,0.04917,92933.0,92930.0,0.09660332]
[1763404971793,0.04917,92933.0,92917.0,0.04341874]
[1763404972007,0.323,92934.0,92930.0,0.09660332]
[1763404972717,0.323,92934.0,92932.0,0.001]
[1763404972949,0.323,92934.0,92918.0,0.09323]
[1763404972950,0.04917,92933.0,92918.0,0.04341874]
[1763404973183,0.04917,92933.0,92932.0,0.09660332]
[1763404973417,0.323,92942.0,92932.0,0.09660332]
[1763404973658,0.323,92942.0,92933.0,0.04680088]
[1763404974268,0.323,92942.0,92941.0,0.03573]
[1763404974487,0.323,92953.0,92933.0,0.02152088]
[1763404974762,0.323,92940.0,92934.0,0.09660332]
[1763404974982,0.323,92938.0,92934.0,0.09660332]
[1763404975409,0.323,92938.0,92935.0,0.09660332]
[1763404975859,0.323,92941.0,92936.0,0.09660332]
[1763404976084,0.323,92939.0,92936.0,0.09660332]
[1763404976526,0.06007,92937.0,92936.0,0.09660332]
[1763404976741,0.06007,92937.0,92935.0,0.001]
[1763404977171,0.02154405,92938.0,92935.0,0.001]
[1763404977400,0.06007,92936.0,92935.0,0.001]
[1763404977827,0.06007,92936.0,92917.0,0.04341874]
[1763404978039,0.06007,92936.0,92933.0,0.09660332]
[1763404978478,0.02154405,92939.0,92917.0,0.04341874]
[1763404978755,0.06007,92934.0,92932.0,0.09660332]
[1763404978970,0.04917,92943.0,92932.0,0.09660332]
[1763404978971,2.0,92939.0,92932.0,0.09660332]
[1763404979193,0.34454405,92938.0,92932.0,0.09660332]
[1763404979408,2.0,92942.0,92932.0,0.09660332]
[1763404979621,2.0,92940.0,92932.0,0.09660332]
[1763404979863,0.02154405,92939.0,92932.0,0.09660332]
[1763404980072,0.02011834,92942.0,92932.0,0.09660332]
[1763404980297,0.00031372,92935.0,92933.0,0.02152088]
[1763404980518,2.0,92940.0,92918.0,0.09660332]
[1763404980731,0.02011834,92939.0,92918.0,0.11812767]
[1763404980957,0.09089,92938.0,92918.0,0.11812767]
[1763404981184,0.09089,92938.0,92900.0,0.09660332]
[1763404981185,0.04891,92919.0,92900.0,0.09660332]
[1763404981423,0.00054,92914.0,92901.0,0.02152829]
[1763404981625,0.00054,92914.0,92889.0,0.09809]
[1763404981626,0.37191,92901.0,92883.0,0.04865]
[1763404981839,0.02011834,92900.0,92892.0,0.09660332]
[1763404982550,0.02011834,92900.0,92892.0,0.00013186]
[1763404982551,0.41389,92899.0,92892.0,0.00013186]
[1763404982778,0.323,92899.0,92898.0,0.09660332]
[1763404984118,0.323,92909.0,92898.0,0.09660332]
[1763404984334,0.04891,92902.0,92898.0,0.09660332]
[1763404984761,0.323,92909.0,92899.0,0.01214509]
[1763404984969,0.323,92909.0,92899.0,0.02152875]
[1763404985175,0.02011834,92908.0,92899.0,0.02152875]
[1763404985382,0.323,92911.0,92899.0,0.02000344]
[1763404986006,0.323,92909.0,92899.0,0.11660676]
[1763404986216,0.04891,92900.0,92899.0,0.11660676]
[1763404986402,0.323,92899.0,92898.0,0.5]
[1763404987060,0.323,92899.0,92898.0,0.56403]
[1763404987271,0.323,92899.0,92898.0,0.5]
[1763404987527,0.323,92916.0,92899.0,0.001]
[1763404987733,0.323,92914.0,92899.0,0.02252875]
[1763404987945,2.02164365,92915.0,92899.0,0.02252875]
[1763404987946,0.323,92910.0,92899.0,0.11813207]
[1763404988850,0.323,92910.0,92899.0,0.21622207]
[1763404989075,0.323,92910.0,92899.0,0.21722207]
[1763404989294,0.09089,92927.0,92899.0,0.21722207]
[1763404989295,0.323,92917.0,92899.0,0.21722207]
[1763404989514,0.323,92917.0,92900.0,0.09809]
[1763404989717,0.02164365,92916.0,92901.0,0.02152829]
[1763404990485,0.02164365,92916.0,92902.0,0.02152806]
[1763404990785,0.02164365,92918.0,92913.0,0.09660332]
[1763404991154,0.34464365,92917.0,92902.0,0.02152806]
[1763404991337,0.323,92917.0,92913.0,0.09660332]
[1763404991762,0.323,92917.0,92892.0,0.04341874]
[1763404991949,0.323,92917.0,92847.0,0.09809]
[1763404991950,0.037191,92916.0,92847.0,0.09809]
[1763404992168,0.037191,92916.0,92792.0,0.02662]
[1763404992169,2.0,92818.0,92792.0,0.02662]
[1763404992492,0.04891,92819.0,92792.0,0.01402862]
[1763404992493,0.01999998,92800.0,92792.0,0.01402862]
[1763404992855,0.00999999,92800.0,92799.0,0.10439332]
[1763404993034,0.01999998,92810.0,92800.0,0.0004]
[1763404993254,0.01999998,92810.0,92800.0,0.02195172]
[1763404993456,0.02841675,92810.0,92800.0,0.02239138]
[1763404993727,0.01841676,92810.0,92801.0,0.02155149]
[1763404994172,0.00718631,92810.0,92801.0,0.02155149]
[1763404994547,0.04891,92819.0,92800.0,0.00083966]
[1763404994760,0.04891,92819.0,92817.0,0.09660332]
[1763404995181,0.06756195,92819.0,92817.0,0.09660332]
[1763404995593,0.00718631,92810.0,92800.0,0.00083966]
[1763404997384,0.06756195,92819.0,92801.0,0.001]
[1763404997385,0.39056195,92819.0,92801.0,0.001]
[1763404997610,0.39056195,92819.0,92815.0,0.09660332]
[1763404998041,0.00718631,92810.0,92800.0,0.00083966]
[1763404998245,0.00718631,92810.0,92800.0,0.00183966]
[1763404998843,0.00718631,92810.0,92800.0,0.00083966]
[1763405000204,0.0171863,92810.0,92800.0,0.00083966]
[1763405000962,0.0171863,92810.0,92800.0,0.00183966]
[1763405001190,0.00993461,92809.0,92800.0,0.00183966]
[1763405001542,0.00993461,92808.0,92800.0,0.00183966]
[1763405001722,0.00993461,92807.0,92800.0,0.00183966]
[1763405001950,0.0171863,92810.0,92800.0,0.00183966]
[1763405002156,0.00992997,92809.0,92800.0,0.00083966]
[1763405002370,0.0171863,92810.0,92800.0,0.00183966]
[1763405002371,0.00992997,92808.0,92800.0,0.00183966]
[1763405002637,0.0171863,92810.0,92800.0,0.02339138]
[1763405002845,0.00991549,92809.0,92800.0,0.02339138]
[1763405003057,0.00991549,92808.0,92800.0,0.02339138]
[1763405003255,0.0171863,92810.0,92800.0,0.02339138]
[1763405003468,0.323,92816.0,92809.0,0.00779]
[1763405003711,0.00991507,92815.0,92814.0,0.09660332]
[1763405003942,0.00718631,92810.0,92800.0,0.02239138]
[1763405004164,0.00718631,92810.0,92800.0,0.02339138]
[1763405004380,0.00718631,92810.0,92800.0,0.02439138]
[1763405004583,0.01887111,92819.0,92809.0,0.00779]
[1763405004791,0.01887111,92819.0,92818.0,0.09660332]
[1763405005006,0.00991595,92819.0,92818.0,0.09660332]
[1763405005456,0.05780595,92819.0,92818.0,0.09660332]
[1763405006505,0.05780595,92819.0,92809.0,0.001]
[1763405006506,0.0768428,92819.0,92809.0,0.001]
[1763405006695,0.33291595,92818.0,92809.0,0.001]
[1763405006946,0.00991595,92817.0,92813.0,0.09660332]
[1763405007156,0.00991595,92816.0,92813.0,0.09660332]
[1763405007370,0.00991595,92815.0,92813.0,0.09660332]
[1763405007585,0.00991595,92814.0,92813.0,0.09660332]
[1763405008002,0.00991595,92815.0,92813.0,0.09660332]
[1763405008204,0.00991595,92814.0,92813.0,0.09660332]
[1763405008628,0.07051595,92814.0,92813.0,0.09760332]
[1763405008842,0.00991595,92814.0,92813.0,0.09760332]
[1763405009051,0.00991595,92814.0,92813.0,0.09660332]
[1763405009508,2.48789595,92814.0,92813.0,0.001]
[1763405009727,2.48789595,92814.0,92800.0,0.00083966]
[1763405009728,0.323,92808.0,92800.0,0.00083966]
[1763405009946,0.09233,92801.0,92800.0,0.00083966]
[1763405010167,2.48964017,92801.0,92800.0,0.00083966]
[1763405010422,2.46799652,92801.0,92800.0,0.00083966]
[1763405010640,2.56142652,92801.0,92800.0,0.00083966]
[1763405011285,2.56142652,92801.0,92800.0,0.00183966]
[1763405011497,2.59959161,92801.0,92800.0,0.00183966]
[1763405011910,2.59959161,92801.0,92800.0,0.00283966]
[1763405013433,2.59962358,92801.0,92800.0,0.00283966]
[1763405013646,2.59762358,92801.0,92800.0,0.00283966]
[1763405014324,2.56301954,92801.0,92800.0,0.00283966]
[1763405014568,2.64179785,92801.0,92800.0,0.00283966]
[1763405014801,2.55980545,92801.0,92800.0,0.00283966]
[1763405015029,2.0,92799.0,92778.0,0.09660332]
[1763405015252,0.43208,92791.0,92790.0,0.00269116]
[1763405015458,2.48474652,92791.0,92790.0,0.00269116]
[1763405015872,2.57817652,92791.0,92790.0,0.00269116]
[1763405016284,2.61638423,92791.0,92790.0,0.00269116]
[1763405016695,2.57817652,92791.0,92790.0,0.00269116]
[1763405017347,2.57817652,92791.0,92790.0,0.00369116]
[1763405017958,2.57817652,92791.0,92790.0,0.00269116]
[1763405019327,2.0,92789.0,92770.0,0.0004]
[1763405019519,0.07431807,92778.0,92777.0,32.36799962]
[1763405019712,0.09820652,92778.0,92777.0,32.36799962]
[1763405020165,0.09820652,92778.0,92777.0,32.36837192]
[1763405020350,0.05266652,92778.0,92777.0,32.36837192]
[1763405020573,0.05266652,92778.0,92777.0,32.36937192]
[1763405021005,0.05266652,92778.0,92777.0,32.36837192]
[1763405021204,0.05266652,92778.0,92777.0,32.36937192]
[1763405021563,0.2028196,92783.0,92777.0,32.36937192]
[1763405021763,0.05326017,92782.0,92777.0,32.36899962]
[1763405021982,0.26065932,92783.0,92777.0,32.36999962]
[1763405022215,0.26065932,92783.0,92782.0,0.00022934]
[1763405022345,0.2028196,92783.0,92782.0,0.01001934]
[1763405022958,0.2028196,92783.0,92782.0,0.01980934]
[1763405023209,0.2028196,92783.0,92782.0,0.01001934]
[1763405023819,0.323,92784.0,92782.0,0.01001934]
[1763405024240,0.323,92784.0,92783.0,0.00979]
[1763405024900,2.0,92785.0,92783.0,0.00275664]
[1763405025105,0.323,92784.0,92782.0,0.00022934]
[1763405025313,0.323,92784.0,92782.0,0.00122934]
[1763405025519,0.36155511,92784.0,92782.0,0.00122934]
[1763405025730,0.323,92784.0,92783.0,0.00552]
[1763405025936,0.323,92784.0,92783.0,0.02707567]
[1763405026153,0.03855511,92788.0,92783.0,0.02707567]
[1763405026351,0.03855511,92789.0,92785.0,0.00276]
[1763405026554,0.03855511,92793.0,92787.0,0.00276]
[1763405026760,0.03855511,92794.0,92787.0,0.00276]
[1763405026968,0.03855511,92791.0,92787.0,0.00276]
[1763405027181,0.323,92786.0,92783.0,0.001]
[1763405027392,0.323,92784.0,92783.0,0.002]
[1763405027595,0.323,92784.0,92783.0,0.001]
[1763405027799,0.323,92784.0,92782.0,0.00022934]
[1763405028196,0.323,92784.0,92783.0,0.00552]
[1763405028451,0.02892121,92786.0,92783.0,0.02707567]
[1763405028655,0.0171863,92790.0,92784.0,0.00276]
[1763405028856,0.04610751,92790.0,92789.0,0.00276]
[1763405029142,0.00999999,92790.0,92789.0,0.00276]
[1763405029380,0.0389212,92790.0,92789.0,0.00552]
[1763405030365,0.02892121,92790.0,92789.0,0.00552]
[1763405030574,0.02892121,92793.0,92789.0,0.00652]
[1763405030780,0.02892121,92793.0,92792.0,0.09660332]
[1763405030946,0.02892121,92793.0,92792.0,0.09936332]
[1763405031146,0.02892121,92793.0,92792.0,0.10212332]
[1763405031568,0.03855664,92794.0,92792.0,0.10212332]
[1763405031771,0.03855664,92794.0,92793.0,0.09660332]
[1763405031973,0.03855664,92794.0,92793.0,0.09936332]
[1763405032194,0.03855664,92794.0,92793.0,0.10212332]
[1763405032596,0.03855664,92795.0,92793.0,0.10212332]
[1763405032796,0.03855664,92795.0,92793.0,0.09936332]
[1763405033003,0.03855664,92795.0,92794.0,0.00276]
[1763405033239,0.03855664,92795.0,92794.0,0.00552]
[1763405033439,0.05783543,92799.0,92794.0,0.00552]
[1763405033632,0.03860403,92795.0,92793.0,0.09660332]
[1763405033865,0.05331909,92794.0,92793.0,0.09660332]
[1763405034274,0.05331909,92794.0,92793.0,0.09936332]
[1763405034680,0.05331909,92794.0,92793.0,0.08881504]
[1763405034859,0.09192312,92794.0,92793.0,0.00552]
[1763405035157,0.09192312,92794.0,92793.0,0.00652]
[1763405035360,0.05331909,92794.0,92793.0,0.00652]
[1763405035535,0.28341892,92799.0,92798.0,0.00276]
[1763405035750,0.22558349,92799.0,92798.0,0.00276]
[1763405035963,0.05783543,92808.0,92798.0,0.00276]
[1763405035964,0.09660332,92820.0,92798.0,0.00552]
[1763405036170,2.0,92815.0,92799.0,0.00276]
[1763405036505,0.02898207,92800.0,92799.0,0.00276]
[1763405036865,2.0,92814.0,92799.0,0.00276]
[1763405037070,0.02898218,92800.0,92799.0,0.00276]
[1763405037267,0.5533117,92817.0,92799.0,0.00276]
[1763405037447,2.0,92815.0,92799.0,0.00276]
[1763405037651,0.02899248,92800.0,92799.0,0.00276]
[1763405037852,0.323,92812.0,92799.0,0.00276]
[1763405038051,2.323,92800.0,92799.0,0.00276]
[1763405038260,0.323,92800.0,92799.0,0.00276]
[1763405039291,0.323,92800.0,92799.0,0.00552]
[1763405039916,0.323,92800.0,92799.0,0.00276]
[1763405040118,0.323,92800.0,92799.0,0.00552]
[1763405040328,2.0,92818.0,92799.0,0.00552]
[1763405040528,0.0184002,92819.0,92818.0,0.00276]
[1763405040874,0.323,92830.0,92818.0,0.00276]
[1763405041071,2.0,92842.0,92819.0,0.09660332]
[1763405041286,2.0,92840.0,92829.0,0.00276]
[1763405041505,2.0,92838.0,92829.0,0.00276]
[1763405041712,2.0,92836.0,92819.0,0.09560332]
[1763405041915,0.04554,92851.0,92819.0,0.09568865]
[1763405041916,2.0,92834.0,92819.0,0.09568865]
[1763405042129,0.323,92831.0,92819.0,0.09568865]
[1763405042329,0.323,92827.0,92819.0,0.09568865]
[1763405042530,0.323,92825.0,92819.0,8.533e-05]
[1763405042731,0.02164365,92824.0,92819.0,8.533e-05]
[1763405044306,0.01847773,92834.0,92823.0,0.00276]
[1763405044527,0.01847773,92834.0,92823.0,0.02154638]
[1763405044734,0.01847773,92834.0,92833.0,0.00276]
[1763405044735,0.01571773,92834.0,92833.0,0.00276]